fUST/lending_fUST_20260514
["ID","MTS","AMOUNT","RATE_DAILY","PERIOD"]
[422217207,1778720525000,274.41760547,0.00013951,30]
[422217208,1778720595000,260.6967252,0.00013952,30]
[422217209,1778720673000,247.66188894,0.00013957,30]
[422217210,1778720845000,235.27879449,0.00013957,30]
[422217299,1778721032000,-500.0,8.897e-05,2]
[422217300,1778721032000,-500.0,8.897e-05,2]
[422217298,1778721032000,-906.22031121,8.897e-05,2]
[422217297,1778721032000,-906.22031121,8.897e-05,2]
[422217294,1778721032000,-906.22031121,8.897e-05,2]
[422217295,1778721032000,-906.22031121,8.897e-05,2]
[422217292,1778721032000,-220.48763501,8.897e-05,2]
[422217293,1778721032000,-906.22031121,8.897e-05,2]
[422217291,1778721032000,-906.22031121,8.897e-05,2]
[422217287,1778721032000,-6570.47760757,8.888e-05,2]
[422217272,1778721032000,-362.97008325,8.107e-05,2]
[422217275,1778721032000,-465.353,8.819e-05,2]
[422217289,1778721032000,-500.0,8.897e-05,2]
[422217281,1778721032000,-194.51210762,8.888e-05,2]
[422217278,1778721032000,-300.0,8.887e-05,2]
[422217301,1778721032000,-906.22031121,8.897e-05,2]
[422217268,1778721032000,-1773.18165213,7.905e-05,2]
[422217265,1778721032000,-390.50085905,7.905e-05,2]
[422217270,1778721032000,-1144.54257401,7.985e-05,2]
[422217257,1778721032000,-2836.31748882,7.905e-05,2]
[422217284,1778721032000,-2649.01028481,8.888e-05,2]
[422217302,1778721032000,-500.0,8.897e-05,2]
[422217296,1778721032000,-906.22031121,8.897e-05,2]
[422217304,1778721032000,-376.74321826,8.897e-05,2]
[422217303,1778721032000,-500.0,8.897e-05,2]
[422217324,1778721032000,-1631.19656014,8.897e-05,2]
[422217323,1778721032000,-906.2203112,8.897e-05,2]
[422217325,1778721032000,-55593.30847871,8.898e-05,2]
[422217321,1778721032000,-906.2203112,8.897e-05,2]
[422217320,1778721032000,-906.2203112,8.897e-05,2]
[422217322,1778721032000,-906.2203112,8.897e-05,2]
[422217317,1778721032000,-906.2203112,8.897e-05,2]
[422217316,1778721032000,-906.2203112,8.897e-05,2]
[422217313,1778721032000,-906.22031121,8.897e-05,2]
[422217315,1778721032000,-906.2203112,8.897e-05,2]
[422217319,1778721032000,-906.2203112,8.897e-05,2]
[422217318,1778721032000,-906.2203112,8.897e-05,2]
[422217314,1778721032000,-906.2203112,8.897e-05,2]
[422217310,1778721032000,-906.22031121,8.897e-05,2]
[422217311,1778721032000,-906.22031121,8.897e-05,2]
[422217309,1778721032000,-285.80732353,8.897e-05,2]
[422217305,1778721032000,-500.0,8.897e-05,2]
[422217307,1778721032000,-500.0,8.897e-05,2]
[422217306,1778721032000,-500.0,8.897e-05,2]
[422217312,1778721032000,-906.22031121,8.897e-05,2]
[422217308,1778721032000,-500.0,8.897e-05,2]
[422217393,1778721038000,-300.0,9.423e-05,2]
[422217400,1778721038000,-300.0,9.423e-05,2]
[422217391,1778721038000,-300.0,9.423e-05,2]
[422217395,1778721038000,-300.0,9.423e-05,2]
[422217414,1778721038000,-600.0,9.423e-05,2]
[422217402,1778721038000,-300.0,9.423e-05,2]
[422217412,1778721038000,-300.0,9.423e-05,2]
[422217416,1778721038000,-167.45243155,9.764e-05,2]
[422217397,1778721038000,-300.0,9.423e-05,2]
[422217389,1778721038000,-300.0,9.423e-05,2]
[422217349,1778721038000,-7682.2034335,8.998e-05,2]
[422217385,1778721038000,-300.0,9.423e-05,2]
[422217383,1778721038000,-300.0,9.423e-05,2]
[422217379,1778721038000,-500.0,9.125e-05,2]
[422217381,1778721038000,-300.0,9.423e-05,2]
[422217377,1778721038000,-513692.22184172,8.999e-05,2]
[422217374,1778721038000,-6778.79294667,8.999e-05,2]
[422217370,1778721038000,-46588.51305982,8.999e-05,2]
[422217372,1778721038000,-2028.97951315,8.999e-05,2]
[422217351,1778721038000,-133919.10009838,8.999e-05,2]
[422217347,1778721038000,-1280688.70736406,8.898e-05,2]
[422217418,1778721038000,-420.0,9.776e-05,2]
[422217387,1778721038000,-300.0,9.423e-05,2]
[422217420,1778721038000,-647.0,9.983e-05,2]
[422217433,1778721038000,-428.30469824,0.00010107,2]
[422217405,1778721038000,-300.0,9.423e-05,2]
[422217455,1778721038000,-2210.71520466,0.000104,2]
[422217457,1778721038000,-2451.77242551,0.000104,2]
[422217453,1778721038000,-2032.4774191,0.000104,2]
[422217451,1778721038000,-2242.12492226,0.000104,2]
[422217461,1778721038000,-151.0,0.00010546,2]
[422217447,1778721038000,-756.73058492,0.00010386,2]
[422217449,1778721038000,-904.46512459,0.000104,2]
[422217459,1778721038000,-511.15121982,0.00010407,2]
[422217463,1778721038000,-76138.42898204,0.00010598,2]
[422217422,1778721038000,-2202.0,9.983e-05,2]
[422217442,1778721038000,-160.0,0.00010318,2]
[422217439,1778721038000,-160.0,0.00010318,2]
[422217440,1778721038000,-161.63868993,0.00010318,2]
[422217431,1778721038000,-23180.83678724,0.0001,2]
[422217438,1778721038000,-160.0,0.00010318,2]
[422217429,1778721038000,-185.0,9.983e-05,2]
[422217426,1778721038000,-443.0,9.983e-05,2]
[422217435,1778721038000,-3423.4239023,0.00010214,2]
[422217437,1778721038000,-1189.3010312,0.00010214,2]
[422217424,1778721038000,-1412.0,9.983e-05,2]
[422217408,1778721038000,-300.0,9.423e-05,2]
[422217410,1778721038000,-300.0,9.423e-05,2]
[422217444,1778721038000,-720.0,0.00010365,2]
[422217510,1778721041000,-1988.18341144,0.00010598,2]
[422217517,1778721043000,-504.48705661,0.00010386,2]
[422217518,1778721043000,-758.13160748,0.00010598,2]
[422217528,1778721046000,-15293.8752956,0.00010598,2]
[422217527,1778721046000,-336.3247044,0.00010386,2]
[422217529,1778721046000,-1405.14528569,0.00010598,2]
[422217530,1778721046000,-657.48855298,0.00010598,2]
[422217531,1778721047000,-410388.01921509,0.00010598,2]
[422217543,1778721088000,1108.858722,0.00014,30]
[422217546,1778721125000,223.51485477,0.00013996,30]
[422217547,1778721226000,332.33911203,0.00013991,30]
[422217548,1778721392000,195.72215642,0.00013968,30]
[422217549,1778721475000,185.9360486,0.00013976,30]
[422217559,1778722192000,176.63924617,0.00013951,30]
[422217585,1778722232000,-808.52906721,8.217e-05,2]
[422217636,1778722238000,-690.53987714,8.596e-05,2]
[422217632,1778722238000,-690.53987714,8.596e-05,2]
[422217634,1778722238000,-690.53987714,8.596e-05,2]
[422217652,1778722238000,-690.53987714,8.596e-05,2]
[422217640,1778722238000,-690.53987714,8.596e-05,2]
[422217642,1778722238000,-690.53987714,8.596e-05,2]
[422217630,1778722238000,-690.53987714,8.596e-05,2]
[422217638,1778722238000,-690.53987714,8.596e-05,2]
[422217628,1778722238000,-690.53987714,8.596e-05,2]
[422217616,1778722238000,-30496.10206624,8.596e-05,2]
[422217620,1778722238000,-690.53987714,8.596e-05,2]
[422217622,1778722238000,-690.53987714,8.596e-05,2]
[422217615,1778722238000,-372.283,8.425e-05,2]
[422217613,1778722238000,-354.85884588,8.383e-05,2]
[422217611,1778722238000,-24634.0,8.3e-05,2]
[422217609,1778722238000,-293.0,8.299e-05,2]
[422217607,1778722238000,-4191.47093279,8.217e-05,2]
[422217655,1778722238000,-690.53987714,8.596e-05,2]
[422217626,1778722238000,-504.34134451,8.596e-05,2]
[422217650,1778722238000,-690.53987714,8.596e-05,2]
[422217618,1778722238000,-690.53987714,8.596e-05,2]
[422217648,1778722238000,-264.08257981,8.596e-05,2]
[422217694,1778722238000,-7682.2034335,8.697e-05,2]
[422217691,1778722238000,-205146.2113743,8.597e-05,2]
[422217689,1778722238000,-479.46249622,8.597e-05,2]
[422217678,1778722238000,-1242.97177881,8.596e-05,2]
[422217676,1778722238000,-690.53987714,8.596e-05,2]
[422217687,1778722238000,-4390.78716792,8.597e-05,2]
[422217696,1778722238000,-63987.08172981,8.7e-05,2]
[422217670,1778722238000,-690.53987714,8.596e-05,2]
[422217684,1778722238000,-2597.96851266,8.597e-05,2]
[422217644,1778722238000,-690.53987714,8.596e-05,2]
[422217672,1778722238000,-690.53987714,8.596e-05,2]
[422217681,1778722238000,-1342644.38393693,8.597e-05,2]
[422217668,1778722238000,-690.53987714,8.596e-05,2]
[422217666,1778722238000,-690.53987714,8.596e-05,2]
[422217662,1778722238000,-690.53987714,8.596e-05,2]
[422217664,1778722238000,-690.53987714,8.596e-05,2]
[422217660,1778722238000,-690.53987714,8.596e-05,2]
[422217658,1778722238000,-690.53987714,8.596e-05,2]
[422217646,1778722238000,-253.9785915,8.596e-05,2]
[422217674,1778722238000,-690.53987714,8.596e-05,2]
[422217829,1778722240000,-2706.95011193,8.7e-05,2]
[422217835,1778722243000,-3816.09152233,8.7e-05,2]
[422217834,1778722243000,-283.87210497,8.7e-05,2]
[422217837,1778722243000,-78900.88015877,8.7e-05,2]
[422217836,1778722243000,-431.83675393,8.7e-05,2]
[422217843,1778722247000,-301.81995112,8.7e-05,2]
[422217842,1778722247000,-108028.92359698,8.7e-05,2]
[422217846,1778722591000,441.16691367,0.00013689,30]
[422217847,1778722602000,168.33226949,0.00013965,30]
[422217858,1778722819000,168.33226949,0.00013949,30]
[422217859,1778722930000,168.33226949,0.0001397,30]
[422217873,1778723418000,776140.28,0.00014,30]
[422217874,1778723424000,168.33226949,0.00013979,30]
[422217912,1778723432000,-561.85557731,8.093e-05,2]
[422218109,1778723438000,-618.56025598,8.499e-05,2]
[422218107,1778723438000,-505.11665806,8.499e-05,2]
[422218112,1778723438000,-1386743.06863844,8.5e-05,2]
[422218102,1778723438000,-150.23170057,8.175e-05,2]
[422218110,1778723438000,-281.4021887,8.499e-05,2]
[422218104,1778723438000,-361.76320774,8.179e-05,2]
[422218105,1778723438000,-298.212,8.428e-05,2]
[422218100,1778723438000,-4438.14442269,8.093e-05,2]
[422218118,1778723441000,-2197.07948057,8.5e-05,2]
[422218134,1778723443000,-4253.12069302,8.5e-05,2]
[422218133,1778723443000,-20099.63232854,8.5e-05,2]
[422218146,1778723446000,-1025.76618042,8.5e-05,2]
[422218144,1778723446000,-922.63859141,8.5e-05,2]
[422218145,1778723446000,-20165.67121127,8.5e-05,2]
[422218147,1778723447000,-63816.13918163,8.5e-05,2]
[422218148,1778723447000,-1143.39730097,8.5e-05,2]
[422218151,1778723504000,168.33226949,0.0001397,30]
[422218152,1778723547000,246.24920212,0.0001397,30]
[422218158,1778724292000,842963.25,0.00014,30]
[422218159,1778724307000,208817.12802015,0.00012,30]
[422218201,1778724632000,-1084.72297688,6.883e-05,2]
[422218203,1778724632000,-222.0,6.952e-05,2]
[422218205,1778724632000,-2371.52639232,6.953e-05,2]
[422218207,1778724632000,-2270.87446784,6.953e-05,2]
[422218215,1778724632000,-368.40078976,7.348e-05,2]
[422218217,1778724632000,-293.0,7.724e-05,2]
[422218209,1778724632000,-357.59913984,6.953e-05,2]
[422218221,1778724632000,-545.83712939,8.047e-05,2]
[422218219,1778724632000,-1097.48121905,8.047e-05,2]
[422218194,1778724632000,-3915.27702312,6.883e-05,2]
[422218213,1778724632000,-5000.0,7.023e-05,2]
[422218211,1778724632000,-300.0,7.022e-05,2]
[422218237,1778724632000,-26.19586559,8.134e-05,2]
[422218233,1778724632000,-64.24024104,8.047e-05,2]
[422218230,1778724632000,-1496.05601605,8.047e-05,2]
[422218235,1778724632000,-346.47313441,8.134e-05,2]
[422218240,1778724632000,-84.33019018,8.299e-05,2]
[422218228,1778724632000,-3035.46436027,8.047e-05,2]
[422218226,1778724632000,-131.75706387,8.047e-05,2]
[422218223,1778724632000,-269.52946695,8.047e-05,2]
[422218239,1778724632000,-281.4021887,8.299e-05,2]
[422218378,1778724638000,-300.0,8.973e-05,2]
[422218371,1778724638000,-300.0,8.973e-05,2]
[422218380,1778724638000,-300.0,8.973e-05,2]
[422218375,1778724638000,-300.0,8.973e-05,2]
[422218377,1778724638000,-300.0,8.973e-05,2]
[422218384,1778724638000,-300.0,8.973e-05,2]
[422218373,1778724638000,-300.0,8.973e-05,2]
[422218383,1778724638000,-300.0,8.973e-05,2]
[422218382,1778724638000,-300.0,8.973e-05,2]
[422218381,1778724638000,-300.0,8.973e-05,2]
[422218365,1778724638000,-300.0,8.973e-05,2]
[422218361,1778724638000,-309235.60892753,8.7e-05,2]
[422218367,1778724638000,-300.0,8.973e-05,2]
[422218359,1778724638000,-566.46650611,8.699e-05,2]
[422218363,1778724638000,-151.4503604,8.8e-05,2]
[422218353,1778724638000,-3216.6942057,8.519e-05,2]
[422218351,1778724638000,-139030.42886252,8.3e-05,2]
[422218357,1778724638000,-934.3113634,8.519e-05,2]
[422218348,1778724638000,-534.2300658,8.299e-05,2]
[422218346,1778724638000,-1213.02920883,6.814e-05,2]
[422218355,1778724638000,-221.5841473,8.519e-05,2]
[422218386,1778724638000,-300.0,8.973e-05,2]
[422218369,1778724638000,-300.0,8.973e-05,2]
[422218385,1778724638000,-300.0,8.973e-05,2]
[422218390,1778724638000,-500.0,9.852e-05,2]
[422218389,1778724638000,-777.03407624,9.425e-05,2]
[422218387,1778724638000,-600.0,8.973e-05,2]
[422218411,1778724638000,-500.0,0.00010126,2]
[422218412,1778724638000,-517.88868292,0.00010126,2]
[422218408,1778724638000,-156.81697334,0.00010126,2]
[422218406,1778724638000,-169.07947682,0.00010126,2]
[422218407,1778724638000,-226.49738517,0.00010126,2]
[422218410,1778724638000,-244.99742318,0.00010126,2]
[422218409,1778724638000,-160.19629477,0.00010126,2]
[422218403,1778724638000,-185.0,9.871e-05,2]
[422218401,1778724638000,-2202.0,9.871e-05,2]
[422218404,1778724638000,-445.171,9.871e-05,2]
[422218402,1778724638000,-1412.0,9.871e-05,2]
[422218405,1778724638000,-157.53574515,0.00010126,2]
[422218398,1778724638000,-720.0,9.87e-05,2]
[422218399,1778724638000,-154.853,9.871e-05,2]
[422218397,1778724638000,-207.63837452,9.852e-05,2]
[422218394,1778724638000,-500.0,9.852e-05,2]
[422218393,1778724638000,-500.0,9.852e-05,2]
[422218396,1778724638000,-500.0,9.852e-05,2]
[422218392,1778724638000,-500.0,9.852e-05,2]
[422218395,1778724638000,-501.16116911,9.852e-05,2]
[422218391,1778724638000,-201.07887844,9.852e-05,2]
[422218400,1778724638000,-648.493,9.871e-05,2]
[422218388,1778724638000,-434.71293191,9.348e-05,2]
[422218454,1778724639000,-500.0,0.00010958,2]
[422218455,1778724639000,-500.0,0.00010958,2]
[422218456,1778724639000,-500.0,0.00010958,2]
[422218449,1778724639000,-500.0,0.00010958,2]
[422218453,1778724639000,-500.0,0.00010958,2]
[422218447,1778724639000,-571.11064846,0.00010958,2]
[422218452,1778724639000,-500.0,0.00010958,2]
[422218448,1778724639000,-500.0,0.00010958,2]
[422218446,1778724639000,-500.0,0.00010958,2]
[422218445,1778724639000,-632.29353232,0.00010958,2]
[422218450,1778724639000,-500.0,0.00010958,2]
[422218451,1778724639000,-500.0,0.00010958,2]
[422218457,1778724639000,-500.0,0.00010958,2]
[422218470,1778724639000,-500.0,0.00010958,2]
[422218459,1778724639000,-500.0,0.00010958,2]
[422218460,1778724639000,-500.0,0.00010958,2]
[422218462,1778724639000,-500.0,0.00010958,2]
[422218472,1778724639000,-500.0,0.00010958,2]
[422218461,1778724639000,-500.0,0.00010958,2]
[422218465,1778724639000,-500.0,0.00010958,2]
[422218463,1778724639000,-500.0,0.00010958,2]
[422218464,1778724639000,-500.0,0.00010958,2]
[422218471,1778724639000,-766.61,0.00010958,2]
[422218468,1778724639000,-500.0,0.00010958,2]
[422218441,1778724639000,-500.48928063,0.00010958,2]
[422218469,1778724639000,-500.0,0.00010958,2]
[422218466,1778724639000,-500.0,0.00010958,2]
[422218458,1778724639000,-500.0,0.00010958,2]
[422218443,1778724639000,-500.0,0.00010958,2]
[422218430,1778724639000,-169.24,0.00010651,2]
[422218442,1778724639000,-500.0,0.00010958,2]
[422218467,1778724639000,-551.86798785,0.00010958,2]
[422218413,1778724639000,-512.07827199,0.00010126,2]
[422218414,1778724639000,-160.0,0.00010171,2]
[422218416,1778724639000,-160.0,0.00010171,2]
[422218415,1778724639000,-161.64793294,0.00010171,2]
[422218417,1778724639000,-160.0,0.00010171,2]
[422218418,1778724639000,-1001.08,0.000102,2]
[422218420,1778724639000,-1376.18940662,0.000104,2]
[422218422,1778724639000,-3106.0515528,0.000104,2]
[422218421,1778724639000,-3738.452418,0.000104,2]
[422218419,1778724639000,-226.27901421,0.00010386,2]
[422218424,1778724639000,-226.30338948,0.00010442,21]
[422218423,1778724639000,-3343.23663357,0.000104,2]
[422218444,1778724639000,-500.0,0.00010958,2]
[422218425,1778724639000,-246.18312976,0.00010459,21]
[422218429,1778724639000,-429.31330026,0.00010618,2]
[422218432,1778724639000,-175.62309336,0.00010819,21]
[422218427,1778724639000,-151.0,0.00010465,2]
[422218431,1778724639000,-376.31562531,0.00010795,2]
[422218433,1778724639000,-286.82298771,0.00010819,21]
[422218428,1778724639000,-161.38,0.00010515,2]
[422218434,1778724639000,-864.0,0.00010857,2]
[422218435,1778724639000,-161.85537793,0.000109,2]
[422218436,1778724639000,-1246.0976,0.00010958,2]
[422218440,1778724639000,-500.0,0.00010958,2]
[422218438,1778724639000,-612.5425,0.00010958,2]
[422218437,1778724639000,-680.4293,0.00010958,2]
[422218439,1778724639000,-1050.370794,0.00010958,2]
[422218426,1778724639000,-156.2321947,0.00010465,2]
[422218473,1778724639000,-500.0,0.00010958,2]
[422218519,1778724639000,-1047.783054,0.00010958,2]
[422218475,1778724639000,-500.0,0.00010958,2]
[422218505,1778724639000,-1047.783054,0.00010958,2]
[422218506,1778724639000,-1047.783054,0.00010958,2]
[422218510,1778724639000,-1047.783054,0.00010958,2]
[422218511,1778724639000,-500.0,0.00010958,2]
[422218512,1778724639000,-1047.783054,0.00010958,2]
[422218514,1778724639000,-1047.783054,0.00010958,2]
[422218515,1778724639000,-1047.783054,0.00010958,2]
[422218513,1778724639000,-1047.783054,0.00010958,2]
[422218517,1778724639000,-1047.783054,0.00010958,2]
[422218518,1778724639000,-1047.783054,0.00010958,2]
[422218520,1778724639000,-1047.783054,0.00010958,2]
[422218522,1778724639000,-1047.783054,0.00010958,2]
[422218516,1778724639000,-1047.783054,0.00010958,2]
[422218508,1778724639000,-1047.783054,0.00010958,2]
[422218521,1778724639000,-1047.783054,0.00010958,2]
[422218524,1778724639000,-1047.783054,0.00010958,2]
[422218526,1778724639000,-1047.783054,0.00010958,2]
[422218474,1778724639000,-500.0,0.00010958,2]
[422218525,1778724639000,-1047.783054,0.00010958,2]
[422218530,1778724639000,-1047.783054,0.00010958,2]
[422218532,1778724639000,-500.0,0.00010958,2]
[422218529,1778724639000,-1047.783054,0.00010958,2]
[422218527,1778724639000,-1047.783054,0.00010958,2]
[422218528,1778724639000,-1047.783054,0.00010958,2]
[422218531,1778724639000,-1047.783054,0.00010958,2]
[422218534,1778724639000,-1047.783054,0.00010958,2]
[422218535,1778724639000,-1047.783054,0.00010958,2]
[422218533,1778724639000,-1047.783054,0.00010958,2]
[422218523,1778724639000,-500.0,0.00010958,2]
[422218503,1778724639000,-1047.783054,0.00010958,2]
[422218536,1778724639000,-1047.783054,0.00010958,2]
[422218504,1778724639000,-1047.783054,0.00010958,2]
[422218507,1778724639000,-1047.783054,0.00010958,2]
[422218476,1778724639000,-419.2583996,0.00010958,2]
[422218478,1778724639000,-500.0,0.00010958,2]
[422218479,1778724639000,-647.74266129,0.00010958,2]
[422218477,1778724639000,-500.0,0.00010958,2]
[422218480,1778724639000,-500.0,0.00010958,2]
[422218482,1778724639000,-500.0,0.00010958,2]
[422218481,1778724639000,-500.0,0.00010958,2]
[422218484,1778724639000,-500.0,0.00010958,2]
[422218485,1778724639000,-500.0,0.00010958,2]
[422218486,1778724639000,-500.0,0.00010958,2]
[422218488,1778724639000,-537.61449039,0.00010958,2]
[422218491,1778724639000,-500.0,0.00010958,2]
[422218489,1778724639000,-500.0,0.00010958,2]
[422218483,1778724639000,-500.0,0.00010958,2]
[422218494,1778724639000,-1047.783054,0.00010958,2]
[422218502,1778724639000,-1047.783054,0.00010958,2]
[422218490,1778724639000,-500.0,0.00010958,2]
[422218501,1778724639000,-1047.783054,0.00010958,2]
[422218500,1778724639000,-1047.783054,0.00010958,2]
[422218498,1778724639000,-1047.783054,0.00010958,2]
[422218499,1778724639000,-1047.783054,0.00010958,2]
[422218509,1778724639000,-1047.783054,0.00010958,2]
[422218496,1778724639000,-1047.783054,0.00010958,2]
[422218492,1778724639000,-500.0,0.00010958,2]
[422218487,1778724639000,-500.0,0.00010958,2]
[422218495,1778724639000,-1047.783054,0.00010958,2]
[422218493,1778724639000,-1047.783054,0.00010958,2]
[422218497,1778724639000,-1047.783054,0.00010958,2]
[422218565,1778724640000,-1047.783054,0.00010958,2]
[422218570,1778724640000,-1047.783054,0.00010958,2]
[422218562,1778724640000,-1047.783054,0.00010958,2]
[422218564,1778724640000,-1047.783054,0.00010958,2]
[422218563,1778724640000,-1047.783054,0.00010958,2]
[422218566,1778724640000,-1047.783054,0.00010958,2]
[422218568,1778724640000,-1047.783054,0.00010958,2]
[422218569,1778724640000,-1047.783054,0.00010958,2]
[422218576,1778724640000,-1047.783054,0.00010958,2]
[422218571,1778724640000,-1047.783054,0.00010958,2]
[422218573,1778724640000,-1047.783054,0.00010958,2]
[422218574,1778724640000,-1047.783054,0.00010958,2]
[422218577,1778724640000,-1047.783054,0.00010958,2]
[422218572,1778724640000,-1047.783054,0.00010958,2]
[422218575,1778724640000,-1047.783054,0.00010958,2]
[422218561,1778724640000,-1047.783054,0.00010958,2]
[422218578,1778724640000,-1047.783054,0.00010958,2]
[422218567,1778724640000,-1047.783054,0.00010958,2]
[422218560,1778724640000,-1047.783054,0.00010958,2]
[422218541,1778724640000,-1047.783054,0.00010958,2]
[422218557,1778724640000,-1047.783054,0.00010958,2]
[422218579,1778724640000,-1047.783054,0.00010958,2]
[422218538,1778724640000,-1047.783054,0.00010958,2]
[422218539,1778724640000,-1047.783054,0.00010958,2]
[422218540,1778724640000,-500.0,0.00010958,2]
[422218543,1778724640000,-1047.783054,0.00010958,2]
[422218542,1778724640000,-1047.783054,0.00010958,2]
[422218545,1778724640000,-1047.783054,0.00010958,2]
[422218546,1778724640000,-1047.783054,0.00010958,2]
[422218558,1778724640000,-1047.783054,0.00010958,2]
[422218547,1778724640000,-1047.783054,0.00010958,2]
[422218549,1778724640000,-500.0,0.00010958,2]
[422218550,1778724640000,-1047.783054,0.00010958,2]
[422218553,1778724640000,-1047.783054,0.00010958,2]
[422218551,1778724640000,-1047.783054,0.00010958,2]
[422218555,1778724640000,-1047.783054,0.00010958,2]
[422218554,1778724640000,-1047.783054,0.00010958,2]
[422218556,1778724640000,-1047.783054,0.00010958,2]
[422218559,1778724640000,-500.0,0.00010958,2]
[422218548,1778724640000,-1047.783054,0.00010958,2]
[422218582,1778724640000,-1047.783054,0.00010958,2]
[422218544,1778724640000,-1047.783054,0.00010958,2]
[422218583,1778724640000,-1047.783054,0.00010958,2]
[422218620,1778724640000,-500.0,0.00010958,2]
[422218622,1778724640000,-500.0,0.00010958,2]
[422218625,1778724640000,-500.0,0.00010958,2]
[422218631,1778724640000,-500.0,0.00010958,2]
[422218629,1778724640000,-500.0,0.00010958,2]
[422218633,1778724640000,-500.0,0.00010958,2]
[422218635,1778724640000,-199.67794653,0.00010958,2]
[422218637,1778724640000,-500.0,0.00010958,2]
[422218627,1778724640000,-500.0,0.00010958,2]
[422218645,1778724640000,-500.0,0.00010958,2]
[422218636,1778724640000,-500.0,0.00010958,2]
[422218642,1778724640000,-500.0,0.00010958,2]
[422218639,1778724640000,-500.0,0.00010958,2]
[422218643,1778724640000,-500.0,0.00010958,2]
[422218644,1778724640000,-500.0,0.00010958,2]
[422218640,1778724640000,-500.0,0.00010958,2]
[422218641,1778724640000,-500.0,0.00010958,2]
[422218580,1778724640000,-1047.783054,0.00010958,2]
[422218646,1778724640000,-500.0,0.00010958,2]
[422218618,1778724640000,-500.0,0.00010958,2]
[422218638,1778724640000,-500.0,0.00010958,2]
[422218616,1778724640000,-641.19,0.00010958,2]
[422218614,1778724640000,-500.0,0.00010958,2]
[422218584,1778724640000,-1047.783054,0.00010958,2]
[422218581,1778724640000,-1047.783054,0.00010958,2]
[422218585,1778724640000,-1047.783054,0.00010958,2]
[422218586,1778724640000,-1047.783054,0.00010958,2]
[422218588,1778724640000,-1047.783054,0.00010958,2]
[422218590,1778724640000,-1047.783054,0.00010958,2]
[422218600,1778724640000,-1047.783054,0.00010958,2]
[422218602,1778724640000,-1047.783054,0.00010958,2]
[422218587,1778724640000,-1047.783054,0.00010958,2]
[422218606,1778724640000,-1047.783054,0.00010958,2]
[422218608,1778724640000,-1047.783054,0.00010958,2]
[422218591,1778724640000,-1047.783054,0.00010958,2]
[422218597,1778724640000,-1047.783054,0.00010958,2]
[422218593,1778724640000,-1047.783054,0.00010958,2]
[422218595,1778724640000,-1047.783054,0.00010958,2]
[422218589,1778724640000,-1047.783054,0.00010958,2]
[422218610,1778724640000,-1047.783054,0.00010958,2]
[422218604,1778724640000,-1047.783054,0.00010958,2]
[422218612,1778724640000,-500.0,0.00010958,2]
[422218694,1778724641000,-500.0,0.00010958,2]
[422218700,1778724641000,-500.0,0.00010958,2]
[422218699,1778724641000,-2101.82,0.00010958,2]
[422218689,1778724641000,-515.33016169,0.00010958,2]
[422218687,1778724641000,-500.0,0.00010958,2]
[422218681,1778724641000,-500.0,0.00010958,2]
[422218677,1778724641000,-720.06,0.00010958,2]
[422218682,1778724641000,-741.25,0.00010958,2]
[422218678,1778724641000,-500.0,0.00010958,2]
[422218680,1778724641000,-500.0,0.00010958,2]
[422218691,1778724641000,-500.85135172,0.00010958,2]
[422218675,1778724641000,-500.0,0.00010958,2]
[422218683,1778724641000,-500.0,0.00010958,2]
[422218693,1778724641000,-500.0,0.00010958,2]
[422218704,1778724641000,-500.0,0.00010958,2]
[422218688,1778724641000,-500.27673002,0.00010958,2]
[422218695,1778724641000,-500.28075644,0.00010958,2]
[422218698,1778724641000,-500.0,0.00010958,2]
[422218696,1778724641000,-500.18746827,0.00010958,2]
[422218697,1778724641000,-500.0,0.00010958,2]
[422218701,1778724641000,-533.17312966,0.00010958,2]
[422218713,1778724641000,-500.0,0.00010958,2]
[422218714,1778724641000,-167.197632,0.00010958,2]
[422218702,1778724641000,-500.0,0.00010958,2]
[422218705,1778724641000,-500.0,0.00010958,2]
[422218708,1778724641000,-500.0,0.00010958,2]
[422218706,1778724641000,-500.0,0.00010958,2]
[422218707,1778724641000,-500.0,0.00010958,2]
[422218679,1778724641000,-500.0,0.00010958,2]
[422218692,1778724641000,-500.0,0.00010958,2]